bitfinex-derivatives/quotes_ETHF0:USTF0_20241013
["timestamp","ask_amount","ask_price","bid_price","bid_amount"]
[1728860878497,4.39319,2466.2,2465.9,0.40563]
[1728860878798,0.4056,2466.1,2465.8,0.40564]
[1728860880492,3.9876,2466.2,2465.9,0.40562]
[1728860880493,4.39319,2466.2,2465.9,0.40562]
[1728860880706,4.39319,2466.2,2465.4,3.6276]
[1728860880707,3.9876,2466.2,2465.4,3.6276]
[1728860880904,4.39318,2466.2,2465.9,0.40561]
[1728860881791,0.4056,2466.1,2465.9,0.40561]
[1728860882701,3.9876,2466.2,2465.7,0.40565]
[1728860882898,0.40564,2465.9,2465.5,3.2078]
[1728860883092,2.85,2466.1,2465.8,0.40564]
[1728860883093,3.25561,2466.1,2465.8,0.40564]
[1728860883299,0.40561,2466.0,2465.5,3.2078]
[1728860883500,4.39319,2466.2,2465.9,0.40562]
[1728860883899,3.9876,2466.2,2465.5,3.2078]
[1728860884103,0.4056,2466.1,2465.8,0.40563]
[1728860884706,4.39319,2466.2,2465.9,0.81112]
[1728860884902,4.39319,2466.2,2465.9,0.4055]
[1728860884903,3.9876,2466.2,2465.9,0.4055]
[1728860885296,0.4056,2466.1,2465.9,0.81112]
[1728860886009,0.4056,2466.1,2465.9,0.4055]
[1728860886504,0.40562,2466.0,2465.5,3.2078]
[1728860886705,0.40562,2466.0,2465.6,0.3912]
[1728860886901,0.40562,2466.0,2465.7,0.40565]
[1728860887108,2.85,2466.1,2465.6,0.3912]
[1728860887306,2.85,2465.9,2465.6,0.3912]
[1728860887610,0.40566,2465.7,2465.6,0.3912]
[1728860888305,0.40566,2465.7,2465.6,0.79688]
[1728860888505,0.40566,2465.7,2465.6,0.3912]
[1728860889911,0.40566,2465.7,2465.5,3.61348]
[1728860889912,0.40568,2465.6,2465.5,3.61348]
[1728860890101,0.4142,2465.7,2465.5,3.61348]
[1728860890510,0.40568,2465.6,2465.5,3.61348]
[1728860891104,0.4142,2465.7,2465.5,3.2078]
[1728860891406,0.81987,2465.7,2465.6,0.40568]
[1728860893015,0.4142,2465.7,2465.6,0.40568]
[1728860893310,0.81986,2465.7,2465.6,0.40568]
[1728860895313,0.4142,2465.7,2465.6,0.40568]
[1728860895507,4.138,2466.1,2465.6,12.906]
[1728860895508,0.094,2466.1,2465.6,12.906]
[1728860895813,0.094,2466.1,2465.4,3.9968]
[1728860895814,0.094,2466.3,2466.2,0.40558]
[1728860896009,0.094,2466.3,2466.0,6.0578]
[1728860896010,0.8012,2466.7,2466.5,0.40553]
[1728860896313,1.2067,2466.7,2466.6,0.40551]
[1728860896506,1.2067,2466.7,2466.1,1.1849]
[1728860896507,0.8012,2466.7,2466.1,1.1849]
[1728860896705,1.20671,2466.7,2466.5,0.40552]
[1728860897014,0.40554,2466.5,2466.3,0.40555]
[1728860897614,0.40552,2466.6,2466.4,0.40554]
[1728860898412,0.40553,2466.5,2466.3,0.40555]
[1728860898714,0.40552,2466.6,2466.4,0.40554]
[1728860900107,0.40553,2466.5,2466.3,0.40555]
[1728860900315,0.40552,2466.6,2466.4,0.40554]
[1728860901103,4.009,2466.7,2466.1,1.1849]
[1728860901316,0.40552,2466.6,2466.4,0.40555]
[1728860901613,0.40553,2466.5,2466.3,0.40555]
[1728860902814,0.40553,2466.5,2466.1,1.1849]
[1728860902815,6.859,2466.7,2466.1,1.1849]
[1728860903114,0.40561,2466.1,2465.8,0.40563]
[1728860903313,0.40559,2466.2,2466.0,0.40561]
[1728860903508,0.40559,2466.1,2465.9,0.40562]
[1728860904916,0.7802,2466.2,2465.9,0.40562]
[1728860905218,0.7802,2466.2,2465.8,0.4044]
[1728860905219,0.40562,2466.0,2465.8,0.81003]
[1728860906115,0.7802,2466.2,2465.8,0.4044]
[1728860906306,0.40563,2465.9,2465.8,0.4044]
[1728860907410,0.40563,2465.9,2465.8,0.81004]
[1728860907611,0.40563,2465.9,2465.8,0.4044]
[1728860908117,0.40563,2465.9,2465.8,0.81004]
[1728860909023,0.40562,2466.0,2465.8,0.81004]
[1728860909811,0.40563,2465.9,2465.8,0.81004]
[1728860910414,0.4056,2466.1,2466.0,0.4056]
[1728860910710,0.4056,2466.1,2465.9,0.40561]
[1728860910915,0.3884,2466.2,2465.8,0.4044]
[1728860911412,0.79398,2466.2,2466.1,0.40559]
[1728860912118,0.3884,2466.2,2466.1,0.40559]
[1728860912621,0.3884,2466.2,2465.8,0.4044]
[1728860913114,0.3884,2466.2,2465.9,0.40562]
[1728860913115,0.4056,2466.1,2465.9,0.40562]
[1728860914309,0.40561,2466.0,2465.9,0.40562]
[1728860914712,0.3884,2466.2,2465.8,0.4044]
[1728860914713,0.40563,2465.9,2465.8,0.4044]
[1728860914916,0.40563,2465.9,2465.8,0.81004]
[1728860915117,0.79398,2466.2,2466.1,0.40559]
[1728860915620,0.3884,2466.2,2466.1,0.40559]
[1728860915817,0.4056,2466.1,2465.9,0.40561]
[1728860916012,0.3884,2466.2,2466.0,0.4056]
[1728860916213,0.3884,2466.2,2465.8,0.81003]
[1728860916214,0.40562,2466.0,2465.8,0.81003]
[1728860916415,0.40562,2466.0,2465.9,0.40563]
[1728860916915,0.4056,2466.1,2466.0,0.4056]
[1728860917118,0.40563,2465.9,2465.8,0.4044]
[1728860917922,0.40565,2465.8,2465.7,0.40566]
[1728860918313,0.40565,2465.8,2465.7,4.46086]
[1728860919111,0.40565,2465.8,2465.7,4.58770043]
[1728860919311,0.40565,2465.8,2465.7,4.46086]
[1728860919518,0.40565,2465.8,2465.7,4.58770051]
[1728860920119,0.40565,2465.8,2465.7,0.12684051]
[1728860920314,0.40565,2465.8,2465.7,0.53250051]
[1728860922515,0.40565,2465.8,2465.7,4.58770051]
[1728860923412,0.40565,2465.8,2465.7,4.18204051]
[1728860923609,0.40565,2465.8,2465.7,0.12684051]
[1728860924422,2.99450729,2466.0,2465.6,5.11853781]
[1728860924423,0.40566,2465.7,2465.6,1.20687]
[1728860924621,0.79006,2465.7,2465.6,1.20687]
[1728860925327,0.79006,2465.7,2465.6,0.8012]
[1728860925516,0.79006,2465.7,2465.6,1.20688]
[1728860926118,0.79006,2465.7,2465.3,1.06166781]
[1728860926119,1.95106729,2465.7,2465.3,1.06166781]
[1728860926320,0.40571,2465.4,2465.3,0.40572]
[1728860926527,0.40571,2465.4,2465.3,0.53258068]
[1728860926723,0.40571,2465.4,2465.3,0.40572]
[1728860927017,0.40574,2465.3,2465.2,0.40574]
[1728860927214,0.4137,2465.3,2465.1,1.1937]
[1728860927415,0.40574,2465.2,2465.1,1.1937]
[1728860928324,0.40574,2465.2,2465.1,0.7857]
[1728860928525,0.40578,2465.0,2464.9,0.408]
[1728860928725,0.40577,2465.1,2465.0,0.40577]
[1728860929228,0.40578,2465.0,2464.9,1.21209]
[1728860929525,0.40577,2465.1,2465.0,0.40578]
[1728860929727,0.40578,2465.0,2464.9,1.21208]
[1728860930827,0.40578,2465.0,2464.9,0.3983]
[1728860931124,0.40578,2465.0,2464.8,3.6184]
[1728860931125,0.40579,2464.9,2464.8,3.2078]
[1728860931323,0.79649,2464.9,2464.8,3.2078]
[1728860931927,3.5985,2464.9,2464.6,0.82314]
[1728860932132,0.4003,2464.8,2464.6,0.4173]
[1728860932328,0.4003,2464.8,2464.7,0.40583]
[1728860932530,0.4003,2464.8,2464.7,0.81423]
[1728860933835,0.80611,2464.8,2464.7,0.4084]
[1728860934130,0.80611,2464.8,2464.6,0.4173]
[1728860934131,0.4003,2464.8,2464.6,0.4173]
[1728860934327,0.40583,2464.7,2464.6,0.4173]
[1728860934527,0.4003,2464.8,2464.6,0.82314]
[1728860934731,0.40583,2464.7,2464.6,0.82314]
[1728860934934,0.40583,2464.7,2464.6,0.4173]
[1728860935432,0.4003,2464.8,2464.3,0.4045]
[1728860935635,0.40587,2464.4,2464.3,0.81038]
[1728860936131,0.4006,2464.7,2464.3,0.4045]
[1728860936333,0.40583,2464.7,2464.6,0.40584]
[1728860936538,0.4003,2464.8,2464.3,0.4045]
[1728860936834,0.40583,2464.7,2464.5,0.40585]
[1728860937320,0.80612,2464.8,2464.6,0.40584]
[1728860937524,0.4003,2464.8,2464.6,0.40584]
[1728860937731,0.80612,2464.8,2464.6,0.40584]
[1728860938249,0.4003,2464.8,2464.6,0.40584]
[1728860938534,0.40583,2464.7,2464.6,0.40584]
[1728860938827,0.40583,2464.7,2464.5,0.40585]
[1728860939637,0.40583,2464.7,2464.3,0.4045]
[1728860939638,0.40584,2464.6,2464.4,0.40587]
[1728860939823,0.40584,2464.6,2464.5,0.4086]
[1728860940347,0.40583,2464.7,2464.5,0.81445]
[1728860940634,0.40583,2464.7,2464.6,0.82744]
[1728860940827,0.40583,2464.7,2464.6,0.4216]
[1728860941026,4.01392,2464.8,2464.6,0.82743]
[1728860941234,4.01392,2464.8,2464.6,0.4216]
[1728860941235,3.6081,2464.8,2464.6,0.4216]
[1728860941436,3.2078,2464.8,2464.7,0.81633]
[1728860944133,4.5325,2465.1,2464.7,0.4105]
[1728860944333,0.40578,2465.0,2464.8,0.4058]
[1728860944536,0.40578,2465.0,2464.9,0.79089]
[1728860944742,0.82527,2465.1,2464.9,0.3851]
[1728860944943,0.40578,2465.0,2464.9,0.3851]
[1728860945239,0.40578,2465.0,2464.7,0.4105]
[1728860945240,0.40581,2464.8,2464.6,0.82744]
[1728860945442,0.40583,2464.7,2464.6,0.4216]
[1728860947841,0.40583,2464.7,2464.6,0.82744]
[1728860948240,0.40582,2464.8,2464.7,0.40582]
[1728860948443,0.40582,2464.8,2464.6,3.2716]
[1728860948444,0.40581,2464.8,2464.6,3.2716]
[1728860948629,0.40581,2464.8,2464.7,0.40583]
[1728860948836,0.4058,2464.9,2464.8,0.4058]
[1728860951741,0.40578,2465.0,2464.9,0.40579]
[1728860952544,3.61355,2465.2,2464.8,2.85]
[1728860952851,3.61355,2465.2,2465.1,0.40576]
[1728860953049,0.40578,2465.0,2464.9,1.17958]
[1728860953350,0.40578,2465.0,2464.9,0.79728]
[1728860953853,0.81667,2465.1,2464.9,0.3915]
[1728860954045,0.81667,2465.1,2465.0,0.40578]
[1728860954539,0.40578,2465.0,2464.9,0.3915]
[1728860955149,3.2078,2465.2,2465.0,0.40576]
[1728860955150,3.61356,2465.2,2465.0,0.40576]
[1728860955348,3.61356,2465.2,2465.1,0.80136]
[1728860955853,3.2078,2465.2,2465.1,0.80136]
[1728860956853,0.40573,2465.3,2465.2,0.40574]
[1728860957546,0.8153,2465.4,2465.3,0.40573]
[1728860957547,1.22102,2465.4,2465.3,0.40573]
[1728860957754,0.80472,2465.4,2465.3,0.40573]
[1728860957949,0.40573,2465.3,2465.2,0.40573]
[1728860958551,0.40574,2465.2,2465.1,0.3956]
[1728860958751,0.40578,2465.0,2464.9,0.3915]
[1728860958950,0.40579,2464.9,2464.8,3.6136]
[1728860959155,0.82509,2464.9,2464.8,3.6136]
[1728860962449,0.40581,2464.8,2464.7,1.24612]
[1728860963165,0.40581,2464.8,2464.4,0.40586]
[1728860963166,0.40587,2464.5,2464.4,0.40586]
[1728860963454,0.40585,2464.6,2464.5,0.40585]
[1728860965060,0.4173,2464.7,2464.5,0.40585]
[1728860965357,0.82314,2464.7,2464.5,0.40585]
[1728860965558,0.40584,2464.6,2464.5,0.40585]
[1728860965960,0.4173,2464.7,2464.2,4.0461]
[1728860966159,3.2693,2464.9,2464.7,0.40581]
[1728860966160,0.8251,2464.9,2464.7,0.40581]
[1728860967151,0.40581,2464.8,2464.7,0.40581]
[1728860969257,1.98596729,2464.9,2464.6,0.40584]
[1728860969461,0.40582,2464.8,2464.6,0.40584]
[1728860969763,0.40582,2464.8,2464.7,0.40583]
[1728860969959,0.40582,2464.8,2464.4,0.3884]
[1728860970153,0.40582,2464.8,2464.6,0.40583]
[1728860970355,1.97248729,2464.8,2464.6,0.40583]
[1728860971465,5.18028729,2464.8,2464.6,0.40583]
[1728860972162,5.18028729,2464.8,2464.7,0.40583]
[1728860972163,4.77446729,2464.8,2464.7,0.40583]
[1728860972376,5.18027729,2464.8,2464.7,0.40583]
[1728860973256,5.18027729,2464.8,2464.4,0.3884]
[1728860973455,1.58372815,2464.7,2464.6,0.40583]
[1728860976766,4.79152815,2464.8,2464.4,1.45006781]
[1728860976963,4.79152815,2464.8,2464.7,0.40583]
[1728860977161,3.2078,2464.8,2464.7,0.53272223]
[1728860977759,3.2078,2464.8,2464.7,4.59032223]
[1728860980159,3.2078,2464.8,2464.7,4.5903228]
[1728860980372,3.2078,2464.8,2464.7,4.46343]
[1728860980559,3.2078,2464.8,2464.7,4.59032372]
[1728860981867,1.58372815,2465.0,2464.7,10.18449372]
[1728860982056,1.58372815,2465.1,2464.8,2.9768826]
[1728860982257,1.97282815,2465.2,2464.9,0.12687699]
[1728860982461,1.97282815,2465.2,2465.1,0.40576]
[1728860983061,0.3891,2465.2,2465.1,0.40576]
[1728860983777,1.58372815,2465.5,2465.1,5.40017925]
[1728860984066,1.58372815,2465.5,2465.4,0.40571]
[1728860984671,1.98941815,2465.5,2465.4,0.40571]
[1728860985968,1.58372815,2465.5,2465.4,0.40571]
[1728860986267,2.37851815,2465.6,2465.4,0.40571]
[1728860986468,1.97282815,2465.6,2465.4,0.40571]
[1728860986775,1.98941815,2465.5,2465.4,0.40571]
[1728860987161,0.40569,2465.5,2465.4,0.40571]
[1728860987965,1.58372815,2465.5,2465.3,0.40572]
[1728860988173,0.3891,2465.6,2465.3,0.40572]
[1728860988174,0.40571,2465.4,2465.3,0.40572]
[1728860988672,1.97282815,2465.6,2465.2,0.40574]
[1728860988673,0.40573,2465.3,2465.2,0.40574]
[1728860989964,1.58372815,2465.5,2465.3,0.40571]
[1728860989965,1.98942815,2465.5,2465.3,0.40571]
[1728860990372,0.4057,2465.5,2465.3,0.40571]
[1728860990975,0.4057,2465.5,2465.4,0.40571]
[1728860992560,2.37851815,2465.6,2465.4,0.4057]
[1728860992973,2.37851815,2465.6,2465.1,0.4038]
[1728860993161,2.37851815,2465.6,2465.5,0.40569]
[1728860993162,0.79479,2465.6,2465.5,0.40569]
[1728860993667,0.3891,2465.6,2465.5,0.40569]
[1728860993868,0.3891,2465.6,2465.5,1.72569]
[1728860995170,0.79478,2465.6,2465.5,1.72569]
[1728860995379,0.3891,2465.6,2465.5,1.72569]
[1728860999176,1.7091,2465.6,2465.5,0.40569]
[1728860999373,2.11478,2465.6,2465.5,0.40569]
[1728860999876,1.7091,2465.6,2465.5,0.40569]
[1728861002067,0.3891,2465.6,2465.5,1.72569]
[1728861002478,0.3891,2465.6,2465.4,0.40571]
[1728861002479,0.40571,2465.5,2465.4,0.40571]
[1728861002675,0.40571,2465.5,2465.1,0.4038]
[1728861002676,1.32,2465.5,2465.1,0.4038]
[1728861002873,1.32,2465.5,2464.9,4.26946781]
[1728861002874,1.32,2465.2,2464.9,1.32]
[1728861003081,3.2078,2465.3,2465.0,0.40576]
[1728861003082,2.13486,2465.1,2465.0,0.40576]
[1728861003781,1.7291,2465.1,2465.0,0.40576]
[1728861003979,0.4091,2465.1,2465.0,1.72576]
[1728861010483,0.40583,2464.7,2464.6,0.81754]
[1728861010686,1.32,2464.7,2464.4,3.2078]
[1728861010884,1.32,2464.5,2464.4,1.72587]
[1728861011092,1.32,2464.5,2464.4,0.40587]
[1728861011282,1.7168,2464.6,2464.5,0.40586]
[1728861011476,1.7168,2464.6,2464.2,1.01476]
[1728861011477,1.7168,2464.6,2464.1,1.47146781]
[1728861011678,0.3909,2464.5,2464.2,1.32]
[1728861011981,0.3909,2464.5,2464.1,0.7929]
[1728861012181,0.3909,2464.5,2464.1,0.4098]
[1728861012182,0.40588,2464.4,2464.1,0.4098]
[1728861012386,0.3909,2464.5,2464.1,0.4098]
[1728861012594,0.3909,2464.5,2464.1,0.40592]
[1728861012595,0.40591,2464.3,2464.1,0.40592]
[1728861012780,2.85,2464.4,2464.0,3.61373]
[1728861012781,0.40592,2464.2,2464.0,3.61373]
[1728861012981,0.81852,2464.2,2464.0,3.61373]
[1728861013494,0.81852,2464.2,2463.9,0.40594]
[1728861013495,0.40593,2464.1,2463.9,0.40594]
[1728861013791,0.40596,2463.9,2463.8,0.4098]
[1728861014087,4.2774,2464.2,2463.6,0.4202]
[1728861014088,3.2733,2464.0,2463.6,0.4202]
[1728861014292,0.40596,2463.9,2463.4,3.6096]
[1728861014584,0.40596,2463.9,2463.7,0.40598]
[1728861014981,0.40596,2463.9,2463.8,0.40597]
[1728861015183,3.2733,2464.0,2463.8,0.40597]
[1728861015393,0.40597,2463.9,2463.7,0.40598]
[1728861015985,0.40597,2463.9,2463.4,3.6096]
[1728861016288,3.2733,2464.0,2463.8,0.40597]
[1728861016483,3.2733,2464.0,2463.4,3.6096]
[1728861016680,0.40596,2463.9,2463.8,0.40597]
[1728861017288,3.67925,2464.0,2463.9,0.40596]
[1728861017483,0.40596,2463.9,2463.8,0.40597]
[1728861018188,3.67925,2464.0,2463.8,0.40597]
[1728861019285,3.67925,2464.0,2463.4,1.41688]
[1728861019682,3.67925,2464.0,2463.8,0.40596]
[1728861020892,3.67925,2464.0,2463.5,0.40602]
[1728861021085,3.67925,2464.0,2463.8,0.40596]
[1728861021289,6.0578,2464.1,2464.0,0.40594]
[1728861021680,0.8204,2464.2,2464.1,0.40592]
[1728861022491,0.4126,2464.2,2464.1,0.40592]
[1728861025888,6.0578,2464.4,2464.3,0.40589]
[1728861026189,0.40589,2464.3,2464.2,0.4059]
[1728861026599,0.40589,2464.3,2464.1,0.40591]
[1728861026784,0.401,2464.2,2464.1,0.40591]
[1728861026979,3.251,2464.2,2464.0,0.40594]
[1728861027281,0.4227,2464.1,2464.0,0.40594]
[1728861027484,0.82862,2464.1,2464.0,0.40594]
[1728861028186,0.4227,2464.1,2464.0,0.40594]
[1728861030194,0.82862,2464.1,2464.0,0.40594]
[1728861030995,0.40594,2464.0,2463.9,0.40595]
[1728861031685,0.40596,2463.9,2463.8,0.40597]
[1728861032987,2.85,2464.0,2463.5,1.2033]
[1728861033197,0.3997,2463.8,2463.7,0.40599]
[1728861035802,1.7197,2463.8,2463.7,0.40599]
[1728861036496,1.32,2463.8,2463.7,0.40599]
[1728861036687,1.32,2463.9,2463.8,0.40597]
[1728861037796,1.32,2463.9,2463.8,4.46437]
[1728861038101,1.32,2463.9,2463.8,0.40597]
[1728861038292,0.3972,2464.1,2464.0,0.40594]
[1728861038493,1.7172,2464.1,2464.0,0.40594]
[1728861038795,3.2078,2464.4,2464.3,0.40589]
[1728861039094,4.5278,2464.4,2464.3,0.40589]
[1728861039890,3.2078,2464.4,2464.3,0.40589]
[1728861044493,6.46365,2464.6,2464.5,0.40586]
[1728861045408,2.85,2464.6,2464.5,0.40586]
[1728861045696,3.65302,2464.8,2464.7,0.40583]
[1728861045892,7.71062,2464.8,2464.7,0.40583]
[1728861046094,7.3048,2464.8,2464.7,0.40583]
[1728861046303,0.3972,2464.8,2464.7,0.40583]
[1728861047301,0.80301,2464.8,2464.7,0.40583]
[1728861047906,0.3972,2464.8,2464.7,0.40583]
[1728861048100,4.4548,2464.8,2464.3,0.3992]
[1728861048310,3.25587,2464.5,2464.1,0.8225]
[1728861048502,3.25587,2464.5,2464.4,0.40587]
[1728861048701,3.64067,2464.5,2464.4,0.40587]
[1728861051109,3.2348,2464.7,2464.1,0.8225]
[1728861051409,3.2348,2464.7,2464.6,0.40584]
[1728861051410,4.04464,2464.7,2464.6,0.40584]
[1728861051611,0.40585,2464.6,2464.5,0.40584]
[1728861053210,4.04464,2464.7,2464.6,0.40584]
[1728861054309,4.04464,2464.7,2464.5,0.40585]
[1728861054714,3.6388,2464.7,2464.6,0.40584]
[1728861054919,3.254,2464.7,2464.6,0.40584]
[1728861055217,3.254,2464.7,2464.2,1.01478]
[1728861055413,2.85,2464.7,2464.6,0.40584]
[1728861058325,1.98092815,2464.8,2464.5,0.826]
[1728861058517,1.98092815,2464.8,2464.7,0.40583]
[1728861058713,0.3972,2464.8,2464.7,0.40583]
[1728861059417,2.38673815,2464.8,2464.7,0.40583]
[1728861059811,3.70673815,2464.8,2464.7,0.40583]
[1728861061417,2.12301,2464.8,2464.7,0.40583]
[1728861062521,3.30092815,2464.8,2464.7,0.40583]
[1728861062721,3.70673815,2464.8,2464.7,0.40583]
[1728861063823,3.30092815,2464.8,2464.5,0.826]
[1728861064122,1.32,2464.6,2464.5,1.23186]
[1728861064522,4.5278,2464.6,2464.4,0.40586]
[1728861064727,1.32,2464.5,2464.3,0.40589]
[1728861065025,1.32,2464.4,2464.3,0.40589]
[1728861065620,1.7102,2464.4,2464.3,0.40589]
[1728861067223,1.7102,2464.4,2464.1,0.3974]
[1728861067423,1.7102,2464.4,2464.1,0.80332]
[1728861067424,1.32,2464.2,2464.1,0.80332]
[1728861072335,5.320002,2464.6,2464.5,0.40586]
[1728861072336,1.58372815,2464.6,2464.5,0.40586]
[1728861072636,3.31302815,2464.6,2464.5,0.40586]
[1728861073024,1.7293,2464.6,2464.5,0.40586]
[1728861076027,2.90372815,2464.7,2464.6,0.40584]
[1728861076334,1.32,2464.7,2464.6,0.40584]
[1728861078227,2.90372815,2464.7,2464.3,1.06166781]
[1728861078431,1.32,2464.4,2464.3,0.40589]
[1728861078627,1.32,2464.4,2464.3,0.53279827]
[1728861079428,1.32,2464.4,2464.3,0.68985559]
[1728861079732,1.32,2464.4,2464.3,0.53279827]
[1728861080319,1.32,2464.4,2464.3,0.6898607]
[1728861080835,6.11152815,2464.4,2464.0,1.06166781]
[1728861081130,2.64,2464.1,2464.0,0.40594]
[1728861081525,3.0408,2464.1,2464.0,0.53286835]
[1728861081728,1.7208,2464.1,2464.0,0.53286835]
[1728861083733,1.7208,2464.1,2464.0,0.69004413]
[1728861084238,1.7208,2464.1,2464.0,0.53286835]
[1728861084435,0.4008,2464.1,2464.0,0.69006582]
[1728861084635,1.7208,2464.1,2464.0,0.69006582]
[1728861086330,2.90372815,2464.2,2464.0,0.28412582]
[1728861086540,2.90372815,2464.2,2464.1,0.53284835]
[1728861090335,2.90372815,2464.2,2464.1,0.40592]
[1728861091132,3.70533815,2464.2,2464.1,0.40592]
[1728861092026,3.29942815,2464.2,2464.1,0.40592]
[1728861097251,1.7157,2464.2,2464.1,0.40592]
[1728861097543,3.70533815,2464.2,2464.1,0.40592]
[1728861097745,3.29942815,2464.2,2464.1,0.40592]
[1728861098447,1.7157,2464.2,2464.1,0.40592]
[1728861098759,1.32,2464.2,2464.1,0.40592]
[1728861100145,5.19832815,2464.3,2464.2,0.40591]
[1728861100146,4.79152815,2464.3,2464.2,0.40591]
[1728861100448,4.5278,2464.3,2464.2,0.40591]
[1728861100646,4.5278,2464.3,2464.2,0.53282734]
[1728861101049,1.32,2464.3,2464.2,0.5328243]
[1728861103447,1.32,2464.3,2464.2,0.40591]
[1728861103768,1.32,2464.3,2464.2,0.53282489]
[1728861109150,1.32,2464.3,2464.2,0.68996824]
[1728861109947,1.58372815,2464.4,2464.3,0.40589]
[1728861110148,1.58372815,2464.5,2464.4,0.40587]
[1728861110353,2.90372815,2464.5,2464.4,0.40587]
[1728861110961,2.90372815,2464.5,2464.4,0.53277956]
[1728861111254,2.90372815,2464.5,2464.4,0.40587]
[1728861111446,2.90372815,2464.5,2464.4,0.5327789]
[1728861112659,2.90372815,2464.5,2464.4,0.53277759]
[1728861113253,2.90372815,2464.5,2464.4,0.53278193]
[1728861113650,2.90372815,2464.5,2464.4,0.40587]
[1728861113849,2.90372815,2464.5,2464.4,0.53277838]
[1728861114859,2.90372815,2464.5,2464.4,0.53277679]
[1728861115744,1.58372815,2464.5,2464.4,1.85277679]
[1728861116058,0.4017,2464.6,2464.5,0.40586]
[1728861116059,2.90372815,2464.6,2464.5,0.40586]
[1728861116248,1.32,2464.6,2464.5,0.53276679]
[1728861116453,4.79152815,2464.7,2464.5,1.44690679]
[1728861116651,3.2078,2464.7,2464.6,1.85273357]
[1728861116854,3.32112815,2464.8,2464.6,1.60398953]
[1728861117059,1.7374,2464.8,2464.7,1.37382357]
[1728861117257,1.32,2464.8,2464.7,1.75872357]
[1728861117460,1.32,2464.8,2464.7,5.81632357]
[1728861118251,1.32,2464.8,2464.7,5.81631871]
[1728861118556,1.32,2464.8,2464.7,5.81631846]
[1728861118760,1.32,2464.8,2464.7,5.68943]
[1728861119954,1.32,2464.8,2464.7,1.63183]
[1728861120657,1.32,2464.8,2464.7,1.226]
[1728861120848,1.32,2464.8,2464.7,0.40583]
[1728861121049,2.90372815,2464.8,2464.7,0.40583]
[1728861121454,3.30953815,2464.8,2464.7,0.40583]
[1728861122657,3.30953815,2464.8,2464.6,0.40584]
[1728861122658,0.40583,2464.7,2464.6,0.40584]
[1728861122855,2.53423,2464.7,2464.6,0.40584]
[1728861123550,2.1284,2464.7,2464.6,0.40584]
[1728861130262,2.53423,2464.7,2464.6,0.40584]
[1728861130461,2.1284,2464.7,2464.6,0.40584]
[1728861134163,1.7193,2464.7,2464.6,0.40584]
[1728861134473,1.58372815,2464.8,2464.7,0.40583]
[1728861134660,2.39662815,2464.9,2464.8,0.40581]
[1728861135063,6.45342815,2464.9,2464.8,0.40581]
[1728861135464,9.09342815,2464.9,2464.4,3.30364781]
[1728861135666,1.32,2464.5,2464.4,1.63317]
[1728861135971,1.32,2464.5,2464.4,1.76007072]
[1728861136271,1.32,2464.5,2464.4,2.69483781]
[1728861136462,1.32,2464.5,2464.4,2.97874472]
[1728861136768,0.8129,2464.9,2464.4,9.17405347]
[1728861136769,1.32,2464.7,2464.4,9.17405347]
[1728861136966,3.32112815,2464.9,2464.6,1.32]
[1728861137161,1.7374,2464.9,2464.8,0.40581]
[1728861137666,1.7374,2464.9,2464.8,1.20531]
[1728861144073,1.32,2464.9,2464.8,1.33219042]
[1728861144277,1.32,2465.0,2464.9,0.40579]
[1728861145082,1.58372815,2465.1,2465.0,0.40578]
[1728861145771,2.90372815,2465.1,2465.0,0.40578]
[1728861146475,1.32,2465.1,2465.0,0.40578]
[1728861146972,2.90372815,2465.1,2465.0,0.40578]
[1728861147279,1.32,2465.1,2465.0,0.40578]
[1728861147879,2.90372815,2465.1,2465.0,0.40578]
[1728861148881,1.32,2465.1,2465.0,0.40578]
[1728861152386,1.32,2465.1,2464.8,3.2078]
[1728861152387,6.96052815,2465.1,2464.8,3.2078]
[1728861152571,6.96052815,2465.1,2464.8,3.61359]
[1728861152572,1.72579,2464.9,2464.8,3.61359]
[1728861153074,2.13109,2464.9,2464.8,3.61359]
[1728861154673,6.18789,2464.9,2464.8,3.2078]
[1728861154884,6.18789,2464.9,2464.6,1.06166781]
[1728861154885,0.40583,2464.7,2464.6,0.40583]
[1728861155086,0.40584,2464.6,2464.5,0.40585]
[1728861155293,2.54774,2464.6,2464.5,0.53275153]
[1728861155584,2.54774,2464.6,2464.5,0.40585]
[1728861155985,6.60534,2464.6,2464.5,0.40585]
[1728861156180,0.40587,2464.5,2464.4,0.40587]
[1728861156388,2.12777,2464.5,2464.4,0.12690935]
[1728861156583,3.71778186,2464.5,2464.4,0.40587]
[1728861156785,0.40588,2464.4,2464.3,0.40588]
[1728861156982,1.72588,2464.4,2464.3,0.53279405]
[1728861157286,1.32,2464.4,2464.3,0.53279405]
[1728861157486,1.32,2464.4,2464.3,0.40588]
[1728861157786,1.32,2464.4,2464.3,0.5327987]
[1728861158396,1.32,2464.4,2464.3,0.40588]
[1728861158689,3.31588186,2464.4,2464.1,1.06166781]
[1728861158888,0.40589,2464.3,2464.2,0.5328217]
[1728861159106,1.99591186,2464.3,2464.1,0.40592]
[1728861159388,0.8224,2464.2,2464.1,0.40592]
[1728861159692,0.8224,2464.2,2464.1,0.53284761]
[1728861160088,2.1424,2464.2,2464.1,0.53284761]
[1728861160994,2.1424,2464.2,2464.1,0.40592]
[1728861161181,0.4176,2464.2,2464.1,0.40592]
[1728861161382,1.7376,2464.2,2464.1,0.53284197]
[1728861161690,1.7376,2464.2,2464.1,0.53284348]
[1728861162401,1.7376,2464.2,2464.1,0.40592]
[1728861164599,1.32,2464.3,2464.2,0.40591]